[Event "Titled Tuesday Blitz April 05 Early 2022"]
[White "Ilyasli, Ughur"]
[Black "Sanchez Alvares, Kelvin Antonio"]
[WhiteFideId "13416197"]
[BlackFideId "3906680"]
[WhiteElo "2045"]
[BlackElo "2193"]
[Result "1-0"]
[Round "10"]
[TimeControl "180+1"]
[Date "2022.04.05"]
[WhiteClock "0:00:10"]
[BlackClock "0:00:28"]

1. d4 {[%clk 0:03:00]}  d5 {[%clk 0:02:59]} 2. c4 {[%clk 0:03:01]}  c6 {[%clk 0:02:59]} 3. Nf3 {[%clk 0:03:01]}  Nf6 {[%clk 0:03:00]} 4. e3 {[%clk 0:03:01]}  Bg4 {[%clk 0:02:59]} 5. Qb3 {[%clk 0:02:57]}  Qb6 {[%clk 0:02:58]} 6. c5 {[%clk 0:02:57]}  Qxb3 {[%clk 0:02:55]} 7. axb3 {[%clk 0:02:58]}  a6 {[%clk 0:02:49]} 8. Ne5 {[%clk 0:02:56]}  Be6 {[%clk 0:02:47]} 9. Nc3 {[%clk 0:02:51]}  Nbd7 {[%clk 0:02:45]} 10. Nd3 {[%clk 0:02:40]}  Bf5 {[%clk 0:02:43]} 11. f4 {[%clk 0:02:29]}  Bxd3 {[%clk 0:02:37]} 12. Bxd3 {[%clk 0:02:29]}  e6 {[%clk 0:02:37]} 13. b4 {[%clk 0:02:29]}  Rc8 {[%clk 0:02:36]} 14. Rg1 {[%clk 0:02:04]}  h5 {[%clk 0:02:34]} 15. h3 {[%clk 0:02:01]}  h4 {[%clk 0:02:34]} 16. Ke2 {[%clk 0:01:51]}  g6 {[%clk 0:02:30]} 17. Bd2 {[%clk 0:01:50]}  Nh5 {[%clk 0:02:29]} 18. Kf3 {[%clk 0:01:46]}  Be7 {[%clk 0:02:27]} 19. Be1 {[%clk 0:01:45]}  Kf8 {[%clk 0:02:23]} 20. Bf2 {[%clk 0:01:42]}  Kg7 {[%clk 0:02:23]} 21. Rh1 {[%clk 0:01:35]}  f6 {[%clk 0:02:22]} 22. Rag1 {[%clk 0:01:35]}  e5 {[%clk 0:02:15]} 23. Bc2 {[%clk 0:01:25]}  e4+ {[%clk 0:02:11]} 24. Ke2 {[%clk 0:01:22]}  g5 {[%clk 0:02:04]} 25. g4 {[%clk 0:01:19]}  hxg3 {[%clk 0:02:01]} 26. Bxg3 {[%clk 0:01:19]}  Nxg3+ {[%clk 0:01:45]} 27. Rxg3 {[%clk 0:01:19]}  Kf7 {[%clk 0:01:46]} 28. f5 {[%clk 0:01:12]}  Rh6 {[%clk 0:01:38]} 29. Kf2 {[%clk 0:01:06]}  Rch8 {[%clk 0:01:37]} 30. Bd1 {[%clk 0:01:01]}  Bd8 {[%clk 0:01:36]} 31. Bg4 {[%clk 0:01:00]}  Bc7 {[%clk 0:01:34]} 32. Rgg1 {[%clk 0:01:00]}  Ke7 {[%clk 0:01:32]} 33. Ra1 {[%clk 0:00:59]}  Rh4 {[%clk 0:01:25]} 34. Rhg1 {[%clk 0:00:57]}  Nb8 {[%clk 0:01:20]} 35. b5 {[%clk 0:00:54]}  axb5 {[%clk 0:01:18]} 36. Ra7 {[%clk 0:00:53]}  Kd7 {[%clk 0:01:16]} 37. Rxb7 {[%clk 0:00:52]}  Na6 {[%clk 0:01:07]} 38. Ra1 {[%clk 0:00:36]}  Ra8 {[%clk 0:01:01]} 39. Be2 {[%clk 0:00:14]}  Kc8 {[%clk 0:00:52]} 40. Rxb5 {[%clk 0:00:10]}  cxb5 {[%clk 0:00:48]} 41. Bxb5 {[%clk 0:00:11]}  Kb7 {[%clk 0:00:43]} 42. c6+ {[%clk 0:00:10]}  Kb6 {[%clk 0:00:35]} 43. Bxa6 {[%clk 0:00:09]}  Rxa6 {[%clk 0:00:29]} 44. Nxd5+ {[%clk 0:00:10]}  Kxc6 {[%clk 0:00:28]} 45. Nb4+ {[%clk 0:00:10]}  Kb5 {[%clk 0:00:28]} 46. Nxa6 {[%clk 0:00:10]} 1-0


[Site "https://www.chess.com"]

[Event "Titled Tuesday Blitz April 05 Early 2022"]
[White "Ivanov, Mike"]
[Black "Fier, Alexandr"]
[WhiteFideId "2613158"]
[BlackFideId "2107139"]
[WhiteElo "2182"]
[BlackElo "2571"]
[Result "1-0"]
[Round "10"]
[TimeControl "180+1"]
[Date "2022.04.05"]
[WhiteClock "0:01:15"]
[BlackClock "0:02:51"]

1. e4 {[%clk 0:03:00]}  e5 {[%clk 0:03:00]} 2. Nf3 {[%clk 0:03:00]}  f5 {[%clk 0:03:01]} 3. Nc3 {[%clk 0:03:01]}  Nf6 {[%clk 0:03:00]} 4. d4 {[%clk 0:02:45]}  fxe4 {[%clk 0:02:59]} 5. dxe5 {[%clk 0:02:42]}  exf3 {[%clk 0:02:59]} 6. exf6 {[%clk 0:02:42]}  fxg2 {[%clk 0:02:59]} 7. Qh5+ {[%clk 0:02:09]}  g6 {[%clk 0:02:58]} 8. Qe5+ {[%clk 0:02:06]}  Qe7 {[%clk 0:02:58]} 9. fxe7 {[%clk 0:02:00]}  gxh1=Q {[%clk 0:02:58]} 10. exf8=Q+ {[%clk 0:01:47]}  Kxf8 {[%clk 0:02:59]} 11. Qxh8+ {[%clk 0:01:42]}  Kf7 {[%clk 0:03:00]} 12. Qxh7+ {[%clk 0:01:41]}  Kf6 {[%clk 0:03:00]} 13. Bh6 {[%clk 0:01:19]}  d5 {[%clk 0:02:51]} 14. O-O-O {[%clk 0:01:15]} 1-0


[Site "https://www.chess.com"]

[Event "Titled Tuesday Blitz April 05 Early 2022"]
[White "Jaferian, Koosha"]
[Black "Buscar, Michael"]
[WhiteFideId "12507440"]
[BlackFideId "2603616"]
[WhiteElo "2030"]
[BlackElo "2010"]
[Result "0-1"]
[Round "10"]
[TimeControl "180+1"]
[Date "2022.04.05"]
[WhiteClock "0:00:40"]
[BlackClock "0:00:13"]

1. Nf3 {[%clk 0:03:00]}  b6 {[%clk 0:02:52]} 2. g3 {[%clk 0:03:00]}  Bb7 {[%clk 0:02:53]} 3. Bg2 {[%clk 0:03:01]}  c5 {[%clk 0:02:53]} 4. c4 {[%clk 0:03:01]}  g6 {[%clk 0:02:53]} 5. O-O {[%clk 0:02:59]}  Bg7 {[%clk 0:02:54]} 6. d4 {[%clk 0:03:00]}  cxd4 {[%clk 0:02:53]} 7. Nxd4 {[%clk 0:03:01]}  Bxg2 {[%clk 0:02:53]} 8. Kxg2 {[%clk 0:03:02]}  Nf6 {[%clk 0:02:47]} 9. b3 {[%clk 0:03:02]}  Nc6 {[%clk 0:02:45]} 10. Bb2 {[%clk 0:03:02]}  Nxd4 {[%clk 0:02:46]} 11. Qxd4 {[%clk 0:03:03]}  O-O {[%clk 0:02:45]} 12. Nc3 {[%clk 0:03:03]}  Qc7 {[%clk 0:02:41]} 13. Rfd1 {[%clk 0:03:02]}  d6 {[%clk 0:02:39]} 14. Kg1 {[%clk 0:02:59]}  Qc5 {[%clk 0:02:37]} 15. Qd2 {[%clk 0:02:55]}  Qh5 {[%clk 0:02:34]} 16. Kg2 {[%clk 0:02:53]}  Rac8 {[%clk 0:02:28]} 17. h3 {[%clk 0:02:51]}  Qf5 {[%clk 0:02:14]} 18. Qe3 {[%clk 0:02:47]}  Rfe8 {[%clk 0:02:12]} 19. Rac1 {[%clk 0:02:45]}  Rc5 {[%clk 0:02:10]} 20. Nb5 {[%clk 0:02:40]}  Qd7 {[%clk 0:01:51]} 21. Ba3 {[%clk 0:02:32]}  Rh5 {[%clk 0:01:50]} 22. g4 {[%clk 0:02:27]}  Bh6 {[%clk 0:01:40]} 23. Qg3 {[%clk 0:02:19]}  Bxc1 {[%clk 0:01:26]} 24. Bxc1 {[%clk 0:01:50]}  Rxb5 {[%clk 0:01:15]} 25. cxb5 {[%clk 0:01:50]}  Qxb5 {[%clk 0:01:16]} 26. Qf3 {[%clk 0:01:39]}  Rc8 {[%clk 0:01:13]} 27. Bb2 {[%clk 0:01:39]}  Nd7 {[%clk 0:01:02]} 28. Qe3 {[%clk 0:01:35]}  Rc2 {[%clk 0:00:47]} 29. Rd2 {[%clk 0:01:19]}  Rxd2 {[%clk 0:00:34]} 30. Qxd2 {[%clk 0:01:20]}  f6 {[%clk 0:00:33]} 31. Qe3 {[%clk 0:01:13]}  Kf7 {[%clk 0:00:29]} 32. Qh6 {[%clk 0:01:13]}  Nf8 {[%clk 0:00:28]} 33. Qe3 {[%clk 0:01:08]}  Qd5+ {[%clk 0:00:26]} 34. f3 {[%clk 0:01:08]}  Ne6 {[%clk 0:00:26]} 35. Qh6 {[%clk 0:01:07]}  Nf8 {[%clk 0:00:17]} 36. Qe3 {[%clk 0:01:06]}  g5 {[%clk 0:00:16]} 37. Bc1 {[%clk 0:00:58]}  Ne6 {[%clk 0:00:16]} 38. Qc3 {[%clk 0:00:56]}  Qd1 {[%clk 0:00:14]} 39. Qb2 {[%clk 0:00:46]}  Nd4 {[%clk 0:00:12]} 40. Kf2 {[%clk 0:00:46]}  Nc2 {[%clk 0:00:12]} 41. Bxg5 {[%clk 0:00:33]}  fxg5 {[%clk 0:00:10]} 42. Qc3 {[%clk 0:00:34]}  Nd4 {[%clk 0:00:10]} 43. Qc4+ {[%clk 0:00:33]}  Kf6 {[%clk 0:00:08]} 44. h4 {[%clk 0:00:28]}  Qxe2+ {[%clk 0:00:07]} 45. Qxe2 {[%clk 0:00:28]}  Nxe2 {[%clk 0:00:07]} 46. hxg5+ {[%clk 0:00:29]}  Kxg5 {[%clk 0:00:08]} 47. Kxe2 {[%clk 0:00:30]}  Kf4 {[%clk 0:00:08]} 48. Kf2 {[%clk 0:00:30]}  e5 {[%clk 0:00:08]} 49. Ke2 {[%clk 0:00:29]}  e4 {[%clk 0:00:09]} 50. fxe4 {[%clk 0:00:30]}  Kxg4 {[%clk 0:00:09]} 51. Ke3 {[%clk 0:00:31]}  h5 {[%clk 0:00:08]} 52. Kd4 {[%clk 0:00:31]}  h4 {[%clk 0:00:09]} 53. Kd5 {[%clk 0:00:32]}  h3 {[%clk 0:00:09]} 54. Kxd6 {[%clk 0:00:33]}  h2 {[%clk 0:00:10]} 55. e5 {[%clk 0:00:34]}  h1=Q {[%clk 0:00:11]} 56. e6 {[%clk 0:00:35]}  Qd1+ {[%clk 0:00:11]} 57. Kc6 {[%clk 0:00:35]}  Qc2+ {[%clk 0:00:11]} 58. Kd7 {[%clk 0:00:35]}  Qxa2 {[%clk 0:00:11]} 59. e7 {[%clk 0:00:36]}  Qxb3 {[%clk 0:00:09]} 60. e8=N {[%clk 0:00:35]}  Qb5+ {[%clk 0:00:10]} 61. Kd8 {[%clk 0:00:36]}  Qxe8+ {[%clk 0:00:10]} 62. Kxe8 {[%clk 0:00:36]}  b5 {[%clk 0:00:10]} 63. Kd7 {[%clk 0:00:37]}  b4 {[%clk 0:00:11]} 64. Kc7 {[%clk 0:00:38]}  b3 {[%clk 0:00:12]} 65. Kb8 {[%clk 0:00:39]}  b2 {[%clk 0:00:13]} 66. Ka8 {[%clk 0:00:40]}  b1=Q {[%clk 0:00:13]} 0-1


[Site "https://www.chess.com"]

[Event "Titled Tuesday Blitz April 05 Early 2022"]
[White "Jakubowska, Anna"]
[Black "Sahil, Tickoo"]
[WhiteFideId "1121952"]
[BlackFideId "5019710"]
[WhiteElo "1924"]
[BlackElo "2099"]
[Result "1-0"]
[Round "10"]
[TimeControl "180+1"]
[Date "2022.04.05"]
[WhiteClock "0:01:12"]
[BlackClock "0:00:02"]

1. e4 {[%clk 0:03:00]}  c5 {[%clk 0:02:59]} 2. Nc3 {[%clk 0:02:59]}  Nc6 {[%clk 0:02:57]} 3. g3 {[%clk 0:02:58]}  g6 {[%clk 0:02:56]} 4. Bg2 {[%clk 0:02:58]}  Bg7 {[%clk 0:02:55]} 5. d3 {[%clk 0:02:58]}  d6 {[%clk 0:02:53]} 6. Nh3 {[%clk 0:02:58]}  Nf6 {[%clk 0:02:46]} 7. O-O {[%clk 0:02:55]}  Bg4 {[%clk 0:02:45]} 8. f3 {[%clk 0:02:55]}  Bd7 {[%clk 0:02:44]} 9. f4 {[%clk 0:02:56]}  O-O {[%clk 0:02:42]} 10. f5 {[%clk 0:02:55]}  Nd4 {[%clk 0:02:41]} 11. g4 {[%clk 0:02:52]}  Bc6 {[%clk 0:02:37]} 12. Nf4 {[%clk 0:02:47]}  e5 {[%clk 0:02:28]} 13. Nfd5 {[%clk 0:02:35]}  Nxd5 {[%clk 0:02:27]} 14. exd5 {[%clk 0:02:35]}  Bd7 {[%clk 0:02:22]} 15. f6 {[%clk 0:02:15]}  Bxf6 {[%clk 0:02:05]} 16. Ne4 {[%clk 0:02:15]}  Be7 {[%clk 0:01:55]} 17. Bh6 {[%clk 0:02:13]}  f5 {[%clk 0:01:30]} 18. Bxf8 {[%clk 0:02:11]}  Qxf8 {[%clk 0:01:28]} 19. c3 {[%clk 0:02:07]}  Nb5 {[%clk 0:01:22]} 20. gxf5 {[%clk 0:02:04]}  gxf5 {[%clk 0:01:21]} 21. Qh5 {[%clk 0:02:05]}  Qf7 {[%clk 0:01:05]} 22. Qxf7+ {[%clk 0:01:54]}  Kxf7 {[%clk 0:01:06]} 23. Bh3 {[%clk 0:01:52]}  Kg6 {[%clk 0:01:03]} 24. Ng3 {[%clk 0:01:47]}  Rf8 {[%clk 0:01:02]} 25. Kh1 {[%clk 0:01:44]}  Nc7 {[%clk 0:00:56]} 26. Rg1 {[%clk 0:01:41]}  Kh6 {[%clk 0:00:45]} 27. Raf1 {[%clk 0:01:39]}  Nxd5 {[%clk 0:00:33]} 28. Bxf5 {[%clk 0:01:38]}  Bc6 {[%clk 0:00:25]} 29. Be4 {[%clk 0:01:36]}  Rxf1 {[%clk 0:00:07]} 30. Rxf1 {[%clk 0:01:37]}  Bg5 {[%clk 0:00:05]} 31. Rf7 {[%clk 0:01:26]}  Nf6 {[%clk 0:00:02]} 32. Bxc6 {[%clk 0:01:11]}  bxc6 {[%clk 0:00:03]} 33. Nf5+ {[%clk 0:01:11]}  Kg6 {[%clk 0:00:02]} 34. Nxd6 {[%clk 0:01:12]} 1-0


[Site "https://www.chess.com"]

[Event "Titled Tuesday Blitz April 05 Early 2022"]
[White "Jaskolka, Tomasz"]
[Black "Ezat, Mohamed"]
[WhiteFideId "1170791"]
[BlackFideId "10600906"]
[WhiteElo "2073"]
[BlackElo "2386"]
[Result "1-0"]
[Round "10"]
[TimeControl "180+1"]
[Date "2022.04.05"]
[WhiteClock "0:00:09"]
[BlackClock "0:00:04"]

1. d4 {[%clk 0:03:00]}  Nf6 {[%clk 0:02:43]} 2. Bf4 {[%clk 0:03:00]}  g6 {[%clk 0:02:43]} 3. Nc3 {[%clk 0:03:00]}  d5 {[%clk 0:02:42]} 4. e3 {[%clk 0:03:01]}  Bg7 {[%clk 0:02:43]} 5. h4 {[%clk 0:03:01]}  O-O {[%clk 0:02:43]} 6. h5 {[%clk 0:03:01]}  c5 {[%clk 0:02:43]} 7. hxg6 {[%clk 0:03:01]}  hxg6 {[%clk 0:02:43]} 8. Nf3 {[%clk 0:03:01]}  Nc6 {[%clk 0:02:44]} 9. Ne5 {[%clk 0:02:57]}  Qa5 {[%clk 0:02:27]} 10. Nxc6 {[%clk 0:02:41]}  bxc6 {[%clk 0:02:24]} 11. Be5 {[%clk 0:02:41]}  Ne4 {[%clk 0:02:21]} 12. Bxg7 {[%clk 0:02:37]}  Kxg7 {[%clk 0:02:20]} 13. dxc5 {[%clk 0:02:32]}  Rb8 {[%clk 0:02:09]} 14. f3 {[%clk 0:01:44]}  Ng3 {[%clk 0:01:32]} 15. Rh4 {[%clk 0:01:21]}  Rxb2 {[%clk 0:01:11]} 16. Qd2 {[%clk 0:00:58]}  Nf5 {[%clk 0:00:50]} 17. Ra4 {[%clk 0:00:57]}  Qc7 {[%clk 0:00:46]} 18. O-O-O {[%clk 0:00:55]}  Rb7 {[%clk 0:00:43]} 19. e4 {[%clk 0:00:52]}  dxe4 {[%clk 0:00:38]} 20. fxe4 {[%clk 0:00:53]}  Ng3 {[%clk 0:00:37]} 21. Ne2 {[%clk 0:00:46]}  Nxe2+ {[%clk 0:00:29]} 22. Bxe2 {[%clk 0:00:46]}  Kg8 {[%clk 0:00:24]} 23. Ra3 {[%clk 0:00:36]}  Qe5 {[%clk 0:00:23]} 24. Qd4 {[%clk 0:00:32]}  Qf4+ {[%clk 0:00:23]} 25. Qe3 {[%clk 0:00:32]}  Qe5 {[%clk 0:00:22]} 26. Qd4 {[%clk 0:00:32]}  Qg5+ {[%clk 0:00:22]} 27. Qe3 {[%clk 0:00:31]}  Qxg2 {[%clk 0:00:22]} 28. Rg1 {[%clk 0:00:20]}  Qh2 {[%clk 0:00:19]} 29. Bc4 {[%clk 0:00:19]}  Kg7 {[%clk 0:00:16]} 30. Qc3+ {[%clk 0:00:18]}  e5 {[%clk 0:00:15]} 31. Qe3 {[%clk 0:00:18]}  Bd7 {[%clk 0:00:10]} 32. Rb3 {[%clk 0:00:17]}  Rfb8 {[%clk 0:00:08]} 33. Rf1 {[%clk 0:00:15]}  Be8 {[%clk 0:00:07]} 34. Qg5 {[%clk 0:00:14]}  a5 {[%clk 0:00:05]} 35. Qf6+ {[%clk 0:00:14]}  Kf8 {[%clk 0:00:04]} 36. Qxg6 {[%clk 0:00:09]} 1-0


[Site "https://www.chess.com"]

[Event "Titled Tuesday Blitz April 05 Early 2022"]
[White "Khamdamova, Afruza"]
[Black "Garv Gaur"]
[WhiteFideId "14210444"]
[BlackFideId "45030839"]
[WhiteElo "1660"]
[BlackElo "1950"]
[Result "0-1"]
[Round "10"]
[TimeControl "180+1"]
[Date "2022.04.05"]
[WhiteClock "0:00:01"]
[BlackClock "0:00:02"]

1. e4 {[%clk 0:03:00]}  c6 {[%clk 0:02:59]} 2. d4 {[%clk 0:03:00]}  d5 {[%clk 0:02:59]} 3. Nc3 {[%clk 0:03:00]}  dxe4 {[%clk 0:02:59]} 4. Nxe4 {[%clk 0:02:59]}  Bf5 {[%clk 0:03:00]} 5. Ng3 {[%clk 0:02:59]}  Bg6 {[%clk 0:03:00]} 6. N1e2 {[%clk 0:02:59]}  e6 {[%clk 0:02:59]} 7. Nf4 {[%clk 0:02:59]}  Bd6 {[%clk 0:02:59]} 8. h4 {[%clk 0:02:56]}  Nf6 {[%clk 0:02:46]} 9. h5 {[%clk 0:02:50]}  Be4 {[%clk 0:02:17]} 10. Nxe4 {[%clk 0:02:48]}  Nxe4 {[%clk 0:02:18]} 11. Bd3 {[%clk 0:02:44]}  Nf6 {[%clk 0:02:15]} 12. Qf3 {[%clk 0:02:39]}  h6 {[%clk 0:02:11]} 13. Bd2 {[%clk 0:02:30]}  Nbd7 {[%clk 0:02:11]} 14. O-O-O {[%clk 0:02:29]}  Qb6 {[%clk 0:02:08]} 15. Be3 {[%clk 0:02:12]}  Nd5 {[%clk 0:01:50]} 16. Nxd5 {[%clk 0:02:07]}  cxd5 {[%clk 0:01:51]} 17. Kb1 {[%clk 0:02:00]}  Nf6 {[%clk 0:01:50]} 18. Rhe1 {[%clk 0:01:58]}  O-O-O {[%clk 0:01:42]} 19. c4 {[%clk 0:01:48]}  dxc4 {[%clk 0:01:40]} 20. Bxc4 {[%clk 0:01:48]}  Kb8 {[%clk 0:01:40]} 21. Rc1 {[%clk 0:01:42]}  Qb4 {[%clk 0:01:29]} 22. Rc3 {[%clk 0:01:24]}  Rc8 {[%clk 0:01:12]} 23. Rec1 {[%clk 0:01:23]}  Rc7 {[%clk 0:01:02]} 24. Rb3 {[%clk 0:01:05]}  Qa5 {[%clk 0:00:57]} 25. Qe2 {[%clk 0:00:43]}  Rhc8 {[%clk 0:00:51]} 26. g4 {[%clk 0:00:36]}  Nd5 {[%clk 0:00:36]} 27. Bd2 {[%clk 0:00:28]}  Qa4 {[%clk 0:00:24]} 28. Qd3 {[%clk 0:00:20]}  Nb6 {[%clk 0:00:22]} 29. Bb5 {[%clk 0:00:19]}  Rxc1+ {[%clk 0:00:20]} 30. Bxc1 {[%clk 0:00:19]}  Rxc1+ {[%clk 0:00:13]} 31. Kxc1 {[%clk 0:00:18]}  Qxa2 {[%clk 0:00:13]} 32. Qc2 {[%clk 0:00:18]}  Qa1+ {[%clk 0:00:13]} 33. Kd2 {[%clk 0:00:18]}  Qa5+ {[%clk 0:00:12]} 34. Qc3 {[%clk 0:00:16]}  Qa1 {[%clk 0:00:12]} 35. Bd3 {[%clk 0:00:15]}  Qg1 {[%clk 0:00:10]} 36. Ke2 {[%clk 0:00:13]}  Qxg4+ {[%clk 0:00:09]} 37. Ke1 {[%clk 0:00:13]}  Nd5 {[%clk 0:00:07]} 38. Qc4 {[%clk 0:00:11]}  Qg1+ {[%clk 0:00:07]} 39. Bf1 {[%clk 0:00:11]}  Qg5 {[%clk 0:00:06]} 40. Rc3 {[%clk 0:00:10]}  Nxc3 {[%clk 0:00:06]} 41. bxc3 {[%clk 0:00:09]}  Qd5 {[%clk 0:00:06]} 42. Qd3 {[%clk 0:00:08]}  Qc6 {[%clk 0:00:04]} 43. Kd2 {[%clk 0:00:07]}  a5 {[%clk 0:00:04]} 44. Qh7 {[%clk 0:00:05]}  a4 {[%clk 0:00:03]} 45. Qg8+ {[%clk 0:00:05]}  Ka7 {[%clk 0:00:03]} 46. Qxf7 {[%clk 0:00:05]}  a3 {[%clk 0:00:03]} 47. Kc2 {[%clk 0:00:01]}  Qa4+ {[%clk 0:00:02]} 0-1


[Site "https://www.chess.com"]

[Event "Titled Tuesday Blitz April 05 Early 2022"]
[White "Kozak, Antoni"]
[Black "Coto Mederos, Michel"]
[WhiteFideId "21832030"]
[BlackFideId "3508528"]
[WhiteElo "2236"]
[BlackElo "2427"]
[Result "1/2-1/2"]
[Round "10"]
[TimeControl "180+1"]
[Date "2022.04.05"]
[WhiteClock "0:00:42"]
[BlackClock "0:00:04"]

1. d4 {[%clk 0:03:00]}  d5 {[%clk 0:03:00]} 2. Nf3 {[%clk 0:03:00]}  Nf6 {[%clk 0:02:59]} 3. c3 {[%clk 0:03:00]}  Bf5 {[%clk 0:02:46]} 4. Bf4 {[%clk 0:02:59]}  e6 {[%clk 0:02:45]} 5. e3 {[%clk 0:02:54]}  Bd6 {[%clk 0:02:40]} 6. Bd3 {[%clk 0:02:54]}  Bg6 {[%clk 0:02:30]} 7. O-O {[%clk 0:02:47]}  O-O {[%clk 0:02:29]} 8. Bxg6 {[%clk 0:02:47]}  hxg6 {[%clk 0:02:29]} 9. Nbd2 {[%clk 0:02:44]}  Nbd7 {[%clk 0:02:29]} 10. c4 {[%clk 0:02:24]}  Bxf4 {[%clk 0:02:08]} 11. exf4 {[%clk 0:02:23]}  dxc4 {[%clk 0:02:08]} 12. Nxc4 {[%clk 0:02:23]}  Nb6 {[%clk 0:02:07]} 13. Nce5 {[%clk 0:02:22]}  c6 {[%clk 0:02:05]} 14. Qe2 {[%clk 0:02:12]}  Qe7 {[%clk 0:01:59]} 15. g3 {[%clk 0:02:07]}  Nbd7 {[%clk 0:01:49]} 16. h4 {[%clk 0:01:59]}  Rfd8 {[%clk 0:01:45]} 17. Rfd1 {[%clk 0:01:54]}  Nd5 {[%clk 0:01:22]} 18. Ng5 {[%clk 0:01:51]}  Nxe5 {[%clk 0:00:59]} 19. dxe5 {[%clk 0:01:51]}  Nc7 {[%clk 0:00:27]} 20. h5 {[%clk 0:01:46]}  f6 {[%clk 0:00:27]} 21. Ne4 {[%clk 0:01:32]}  gxh5 {[%clk 0:00:12]} 22. Qxh5 {[%clk 0:01:28]}  Rxd1+ {[%clk 0:00:11]} 23. Rxd1 {[%clk 0:01:27]}  Rd8 {[%clk 0:00:12]} 24. Rxd8+ {[%clk 0:01:24]}  Qxd8 {[%clk 0:00:13]} 25. exf6 {[%clk 0:01:24]}  gxf6 {[%clk 0:00:12]} 26. Qg6+ {[%clk 0:01:24]}  Kf8 {[%clk 0:00:12]} 27. Nxf6 {[%clk 0:01:23]}  Qd1+ {[%clk 0:00:08]} 28. Kg2 {[%clk 0:01:22]}  Nd5 {[%clk 0:00:08]} 29. Ng4 {[%clk 0:01:11]}  Ke7 {[%clk 0:00:05]} 30. Qg7+ {[%clk 0:01:10]}  Kd6 {[%clk 0:00:05]} 31. Ne5 {[%clk 0:00:57]}  Ne3+ {[%clk 0:00:02]} 32. Kh2 {[%clk 0:00:42]}  Qh5+ {[%clk 0:00:02]} 33. Kg1 {[%clk 0:00:41]}  Qd1+ {[%clk 0:00:03]} 34. Kh2 {[%clk 0:00:41]}  Qh5+ {[%clk 0:00:04]} 35. Kg1 {[%clk 0:00:41]}  Qd1+ {[%clk 0:00:04]} 36. Kh2 {[%clk 0:00:42]} 1/2-1/2


[Site "https://www.chess.com"]

[Event "Titled Tuesday Blitz April 05 Early 2022"]
[White "Lakshmi C"]
[Black "Kouskoutis, Georgios-Alexandros"]
[WhiteFideId "25035347"]
[BlackFideId "4234049"]
[WhiteElo "1775"]
[BlackElo "2130"]
[Result "0-1"]
[Round "10"]
[TimeControl "180+1"]
[Date "2022.04.05"]
[WhiteClock "0:00:01"]
[BlackClock "0:00:01"]

1. e4 {[%clk 0:02:57]}  c5 {[%clk 0:03:00]} 2. Nf3 {[%clk 0:02:54]}  d6 {[%clk 0:02:47]} 3. d4 {[%clk 0:02:54]}  cxd4 {[%clk 0:02:48]} 4. Nxd4 {[%clk 0:02:53]}  Nf6 {[%clk 0:02:49]} 5. Nc3 {[%clk 0:02:53]}  g6 {[%clk 0:02:49]} 6. Be2 {[%clk 0:02:51]}  Bg7 {[%clk 0:02:46]} 7. O-O {[%clk 0:02:50]}  O-O {[%clk 0:02:45]} 8. Bg5 {[%clk 0:02:48]}  Nc6 {[%clk 0:02:45]} 9. Nb3 {[%clk 0:02:47]}  Bd7 {[%clk 0:02:44]} 10. Kh1 {[%clk 0:02:45]}  Rc8 {[%clk 0:02:33]} 11. f4 {[%clk 0:02:42]}  Be6 {[%clk 0:01:55]} 12. f5 {[%clk 0:02:17]}  Bd7 {[%clk 0:01:47]} 13. Qd2 {[%clk 0:02:05]}  Ne5 {[%clk 0:01:45]} 14. Qf4 {[%clk 0:02:01]}  b5 {[%clk 0:01:25]} 15. a3 {[%clk 0:01:00]}  a5 {[%clk 0:01:24]} 16. Nd4 {[%clk 0:00:57]}  b4 {[%clk 0:01:08]} 17. axb4 {[%clk 0:00:51]}  axb4 {[%clk 0:01:09]} 18. Nd5 {[%clk 0:00:50]}  Nxd5 {[%clk 0:00:55]} 19. exd5 {[%clk 0:00:49]}  f6 {[%clk 0:00:53]} 20. Bh6 {[%clk 0:00:35]}  g5 {[%clk 0:00:37]} 21. Bxg5 {[%clk 0:00:34]}  fxg5 {[%clk 0:00:38]} 22. Qxg5 {[%clk 0:00:34]}  Kh8 {[%clk 0:00:31]} 23. Ne6 {[%clk 0:00:17]}  Bxe6 {[%clk 0:00:23]} 24. fxe6 {[%clk 0:00:17]}  Rxc2 {[%clk 0:00:15]} 25. Rxf8+ {[%clk 0:00:15]}  Qxf8 {[%clk 0:00:15]} 26. Rf1 {[%clk 0:00:13]}  Bf6 {[%clk 0:00:11]} 27. Qh5 {[%clk 0:00:12]}  Kg8 {[%clk 0:00:08]} 28. b3 {[%clk 0:00:10]}  Ng6 {[%clk 0:00:06]} 29. h3 {[%clk 0:00:09]}  Qg7 {[%clk 0:00:06]} 30. Bd3 {[%clk 0:00:09]}  Rc3 {[%clk 0:00:06]} 31. Bc4 {[%clk 0:00:08]}  Rxc4 {[%clk 0:00:04]} 32. bxc4 {[%clk 0:00:08]}  b3 {[%clk 0:00:05]} 33. c5 {[%clk 0:00:07]}  dxc5 {[%clk 0:00:05]} 34. Qf3 {[%clk 0:00:07]}  b2 {[%clk 0:00:05]} 35. Qb3 {[%clk 0:00:06]}  h5 {[%clk 0:00:04]} 36. d6 {[%clk 0:00:06]}  Be5 {[%clk 0:00:02]} 37. d7 {[%clk 0:00:06]}  Bc7 {[%clk 0:00:03]} 38. Qb7 {[%clk 0:00:03]}  Nf4 {[%clk 0:00:02]} 39. Qc8+ {[%clk 0:00:02]}  Kh7 {[%clk 0:00:02]} 40. Rxf4 {[%clk 0:00:02]}  Bxf4 {[%clk 0:00:02]} 41. Qb7 {[%clk 0:00:01]}  Qg6 {[%clk 0:00:01]} 0-1


[Site "https://www.chess.com"]

[Event "Titled Tuesday Blitz April 05 Early 2022"]
[White "Lauridsen, Jesper Morch"]
[Black "Petrovic, Aleksa"]
[WhiteFideId "1401890"]
[BlackFideId "967629"]
[WhiteElo "2276"]
[BlackElo "2198"]
[Result "0-1"]
[Round "10"]
[TimeControl "180+1"]
[Date "2022.04.05"]
[WhiteClock "0:00:02"]
[BlackClock "0:00:07"]

1. e4 {[%clk 0:03:00]}  c5 {[%clk 0:02:55]} 2. Nf3 {[%clk 0:03:00]}  e6 {[%clk 0:02:55]} 3. d4 {[%clk 0:03:00]}  cxd4 {[%clk 0:02:55]} 4. Nxd4 {[%clk 0:03:00]}  a6 {[%clk 0:02:55]} 5. Bd3 {[%clk 0:02:58]}  Nf6 {[%clk 0:02:54]} 6. O-O {[%clk 0:02:57]}  Qc7 {[%clk 0:02:54]} 7. c4 {[%clk 0:02:57]}  d6 {[%clk 0:02:41]} 8. b3 {[%clk 0:02:55]}  g6 {[%clk 0:02:41]} 9. Bb2 {[%clk 0:02:55]}  Bg7 {[%clk 0:02:41]} 10. Nc3 {[%clk 0:02:47]}  O-O {[%clk 0:02:40]} 11. Rc1 {[%clk 0:02:46]}  b6 {[%clk 0:02:36]} 12. Qe2 {[%clk 0:02:25]}  Bb7 {[%clk 0:02:31]} 13. Rfd1 {[%clk 0:02:24]}  Nbd7 {[%clk 0:02:30]} 14. Bb1 {[%clk 0:02:21]}  Rfe8 {[%clk 0:02:16]} 15. a3 {[%clk 0:02:16]}  Rac8 {[%clk 0:02:02]} 16. Ba2 {[%clk 0:01:56]}  Qb8 {[%clk 0:01:54]} 17. b4 {[%clk 0:01:51]}  d5 {[%clk 0:01:52]} 18. f3 {[%clk 0:01:27]}  Bh6 {[%clk 0:01:29]} 19. Ra1 {[%clk 0:01:15]}  dxe4 {[%clk 0:01:04]} 20. Nxe4 {[%clk 0:01:09]}  Bxe4 {[%clk 0:00:53]} 21. fxe4 {[%clk 0:01:09]}  Ne5 {[%clk 0:00:49]} 22. Nf3 {[%clk 0:01:04]}  Neg4 {[%clk 0:00:42]} 23. Bc1 {[%clk 0:00:36]}  Bxc1 {[%clk 0:00:37]} 24. Raxc1 {[%clk 0:00:35]}  Qf4 {[%clk 0:00:35]} 25. Re1 {[%clk 0:00:29]}  Ne5 {[%clk 0:00:29]} 26. Nxe5 {[%clk 0:00:26]}  Qxe5 {[%clk 0:00:30]} 27. Rcd1 {[%clk 0:00:21]}  Red8 {[%clk 0:00:27]} 28. Rxd8+ {[%clk 0:00:19]}  Rxd8 {[%clk 0:00:27]} 29. Bb1 {[%clk 0:00:19]}  Kg7 {[%clk 0:00:26]} 30. h3 {[%clk 0:00:18]}  h5 {[%clk 0:00:25]} 31. c5 {[%clk 0:00:18]}  bxc5 {[%clk 0:00:25]} 32. bxc5 {[%clk 0:00:18]}  Qxc5+ {[%clk 0:00:25]} 33. Kh1 {[%clk 0:00:17]}  a5 {[%clk 0:00:17]} 34. Qb2 {[%clk 0:00:16]}  e5 {[%clk 0:00:16]} 35. Ba2 {[%clk 0:00:14]}  Qd4 {[%clk 0:00:13]} 36. Qb3 {[%clk 0:00:13]}  Rd7 {[%clk 0:00:13]} 37. Qb8 {[%clk 0:00:09]}  Nxe4 {[%clk 0:00:10]} 38. Qe8 {[%clk 0:00:05]}  Nf6 {[%clk 0:00:09]} 39. Qc8 {[%clk 0:00:03]}  Qf2 {[%clk 0:00:08]} 40. Ra1 {[%clk 0:00:02]}  Rd2 {[%clk 0:00:07]} 0-1


[Site "https://www.chess.com"]